fUST/lending_fUST_20251004
["ID","MTS","AMOUNT","RATE_DAILY","PERIOD"]
[389151233,1759591879172,-613.77,0.0002,2]
[389151234,1759591879182,-695.31,0.0002,2]
[389151235,1759591879192,-633.24,0.0002,2]
[389151236,1759591879201,-3304.75,0.0002,2]
[389151237,1759591879212,-151.36050295,0.0002,7]
[389151238,1759591879222,-151.0,0.0002,2]
[389151239,1759591879232,-366.88122184,0.0002,2]
[389151240,1759591879242,-1142.91,0.0002,2]
[389151241,1759591879252,-151.0,0.0002,2]
[389151242,1759591879262,-500.0,0.0002,2]
[389151243,1759591879271,-626.258136,0.0002,2]
[389151244,1759591879280,-199.939434,0.0002,2]
[389151245,1759591879290,-1593.05,0.0002,2]
[389151246,1759591879299,-626.258136,0.0002,2]
[389151247,1759591879309,-626.258136,0.0002,2]
[389151248,1759591879319,-4038.6835485,0.0002,2]
[389151249,1759591879330,-2044.74,0.0002,2]
[389151250,1759591879340,-68974.06897678,0.0002,2]
[389151251,1759591879350,-1681.94,0.0002,2]
[389151252,1759591879361,-626.258145,0.0002,2]
[389151253,1759591879372,-500.0,0.0002,2]
[389151254,1759591879382,-276.382728,0.0002,2]
[389151255,1759591879392,-276.382728,0.0002,2]
[389151256,1759591879402,-500.0,0.0002,2]
[389151257,1759591879414,-500.0,0.0002,2]
[389151258,1759591879424,-276.382728,0.0002,2]
[389151259,1759591879433,-500.0,0.0002,2]
[389151260,1759591879446,-151.0,0.0002,2]
[389151261,1759591879455,-276.38273,0.0002,2]
[389151262,1759591879465,-943.18,0.0002,2]
[389151263,1759591879475,-500.0,0.0002,2]
[389151264,1759591879483,-250.420683,0.0002,2]
[389151265,1759591879493,-411.806865,0.0002,2]
[389151266,1759591879501,-500.0,0.0002,2]
[389151267,1759591879510,-411.806865,0.0002,2]
[389151268,1759591879520,-1325.84,0.0002,2]
[389151269,1759591879529,-411.806865,0.0002,2]
[389151270,1759591879539,-428.21618788,0.0002,2]
[389151271,1759591879548,-500.0,0.0002,2]
[389151272,1759591879557,-160.0,0.0002,7]
[389151273,1759591879566,-411.806866,0.0002,2]
[389151274,1759591879575,-238.559985,0.0002,2]
[389151275,1759591879583,-500.0,0.0002,2]
[389151276,1759591879592,-238.559985,0.0002,2]
[389151277,1759591879601,-152.898051,0.0002,2]
[389151278,1759591879610,-238.559985,0.0002,2]
[389151279,1759591879620,-1462.47,0.0002,2]
[389151280,1759591879629,-238.559993,0.0002,2]
[389151281,1759591879637,-500.0,0.0002,2]
[389151282,1759591879646,-894.67,0.0002,2]
[389151283,1759591879657,-500.0,0.0002,2]
[389151284,1759591879666,-1441.01,0.0002,2]
[389151285,1759591879674,-500.0,0.0002,2]
[389151286,1759591879683,-500.0,0.0002,2]
[389151287,1759591879692,-500.0,0.0002,2]
[389151288,1759591879701,-948.86,0.0002,2]
[389151289,1759591879710,-500.0,0.0002,2]
[389151290,1759591879719,-808.847667,0.0002,2]
[389151291,1759591879728,-500.0,0.0002,2]
[389151292,1759591879737,-808.847667,0.0002,2]
[389151293,1759591879746,-582.49,0.0002,2]
[389151294,1759591879755,-1083.58,0.0002,2]
[389151295,1759591879764,-808.847667,0.0002,2]
[389151296,1759591879773,-2269.4,0.0002,2]
[389151297,1759591879782,-7279.62,0.0002,2]
[389151298,1759591879792,-808.847669,0.0002,2]
[389151299,1759591879801,-859.66,0.0002,2]
[389151300,1759591879816,-500.0,0.0002,2]
[389151301,1759591879825,-268.82257756,0.0002,2]
[389151302,1759591879834,-885.0,0.0002,2]
[389151303,1759591879844,-500.0,0.0002,2]
[389151304,1759591879853,-500.0,0.0002,2]
[389151305,1759591879862,-500.0,0.0002,2]
[389151306,1759591879871,-500.0,0.0002,2]
[389151307,1759591879880,-410.76896522,0.0002,2]
[389151308,1759591879889,-2242.57,0.0002,2]
[389151309,1759591879899,-151.0,0.0002,2]
[389151310,1759591879909,-151.0,0.0002,2]
[389151311,1759591879918,-353.26456486,0.0002,2]
[389151312,1759591879928,-521.71,0.0002,2]
[389151313,1759591879937,-151.0,0.0002,2]
[389151314,1759591879947,-500.0,0.0002,2]
[389151315,1759591879957,-1253.86,0.0002,2]
[389151316,1759591879966,-151.0,0.0002,2]
[389151317,1759591879976,-151.0,0.0002,2]
[389151318,1759591879986,-500.0,0.0002,2]
[389151319,1759591879995,-1820.23,0.0002,2]
[389151320,1759591880004,-270.705993,0.0002,2]
[389151321,1759591880013,-151.0,0.0002,2]
[389151322,1759591880023,-1593.62,0.0002,2]
[389151323,1759591880032,-500.0,0.0002,2]
[389151324,1759591880041,-151.0,0.0002,2]
[389151325,1759591880050,-565.683707,0.0002,2]
[389151326,1759591880059,-500.0,0.0002,2]
[389151327,1759591880069,-151.0,0.0002,2]
[389151328,1759591880078,-2434.85,0.0002,2]
[389151329,1759591880087,-500.0,0.0002,2]
[389151330,1759591880097,-565.683707,0.0002,2]
[389151331,1759591880106,-556.960052,0.0002,2]
[389151332,1759591880116,-230.2483003,0.0002,2]
[389151333,1759591880126,-565.683707,0.0002,2]
[389151334,1759591880135,-556.960052,0.0002,2]
[389151335,1759591880144,-565.683701,0.0002,2]
[389151336,1759591880154,-156.006613,0.0002,2]
[389151337,1759591880166,-500.0,0.0002,2]
[389151338,1759591880176,-556.960052,0.0002,2]
[389151339,1759591880185,-500.0,0.0002,2]
[389151340,1759591880195,-151.0,0.0002,2]
[389151341,1759591880204,-156.006613,0.0002,2]
[389151342,1759591880214,-556.960042,0.0002,2]
[389151343,1759591880223,-500.0,0.0002,2]
[389151344,1759591880232,-156.006613,0.0002,2]
[389151345,1759591880242,-500.0,0.0002,2]
[389151346,1759591880251,-500.0,0.0002,2]
[389151347,1759591880260,-500.0,0.0002,2]
[389151348,1759591880270,-156.006613,0.0002,2]
[389151349,1759591880279,-10000.0,0.0002,2]
[389151350,1759591880289,-10000.0,0.0002,2]
[389151351,1759591880300,-357.528017,0.0002,2]
[389151352,1759591880310,-983.67,0.0002,2]
[389151353,1759591880319,-10000.0,0.0002,2]
[389151354,1759591880329,-1438.86,0.0002,2]
[389151355,1759591880339,-357.528017,0.0002,2]
[389151356,1759591880348,-1155.35,0.0002,2]
[389151357,1759591880357,-10000.0,0.0002,2]
[389151358,1759591880366,-3420.09,0.0002,2]
[389151359,1759591880374,-357.528017,0.0002,2]
[389151360,1759591880383,-500.0,0.0002,2]
[389151361,1759591880393,-357.52802,0.0002,2]
[389151362,1759591880403,-300.31075032,0.0002,2]
[389151363,1759591880415,-500.0,0.0002,2]
[389151364,1759591880425,-500.0,0.0002,2]
[389151365,1759591880435,-883.76,0.0002,2]
[389151366,1759591880446,-500.0,0.0002,2]
[389151367,1759591880455,-500.0,0.0002,2]
[389151368,1759591880465,-500.0,0.0002,2]
[389151369,1759591880475,-500.0,0.0002,2]
[389151370,1759591880484,-453.45546985,0.0002,2]
[389151371,1759591880494,-985.70328,0.0002,2]
[389151372,1759591880506,-1284.14,0.0002,2]
[389151373,1759591880515,-669.76,0.0002,2]
[389151374,1759591880525,-500.0,0.0002,2]
[389151375,1759591880534,-500.0,0.0002,2]
[389151376,1759591880544,-5883.16,0.0002,2]
[389151377,1759591880554,-168.506091,0.0002,2]
[389151378,1759591880563,-1932.092309,0.0002,2]
[389151379,1759591880571,-5418.8,0.0002,2]
[389151380,1759591880581,-168.506091,0.0002,2]
[389151381,1759591880590,-1932.092309,0.0002,2]
[389151382,1759591880599,-168.506091,0.0002,2]
[389151383,1759591880608,-500.0,0.0002,2]
[389151384,1759591880617,-1932.092309,0.0002,2]
[389151385,1759591880626,-500.0,0.0002,2]
[389151386,1759591880636,-168.506085,0.0002,2]
[389151387,1759591880644,-1932.092315,0.0002,2]
[389151388,1759591880654,-985.70328,0.0002,2]
[389151389,1759591880666,-500.0,0.0002,2]
[389151390,1759591880676,-500.0,0.0002,2]
[389151391,1759591880686,-985.70328,0.0002,2]
[389151392,1759591880695,-659.62,0.0002,2]
[389151393,1759591880704,-606.75952123,0.0002,2]
[389151394,1759591880713,-500.0,0.0002,2]
[389151395,1759591880723,-1049.37,0.0002,2]
[389151396,1759591880732,-985.70328,0.0002,2]
[389151397,1759591880741,-500.0,0.0002,2]
[389151398,1759591880750,-500.0,0.0002,2]
[389151399,1759591880760,-599.3,0.0002,2]
[389151400,1759591880769,-500.0,0.0002,2]
[389151401,1759591880778,-500.0,0.0002,2]
[389151402,1759591880787,-549.30809022,0.0002,2]
[389151403,1759591880797,-6787.62,0.0002,2]
[389151404,1759591880810,-151.0,0.0002,2]
[389151405,1759591880819,-1550.12,0.0002,2]
[389151406,1759591880828,-1385.262419,0.0002,2]
[389151407,1759591880945,-1385.262419,0.0002,2]
[389151408,1759591880954,-151.0,0.0002,2]
[389151409,1759591880963,-645.14,0.0002,2]
[389151410,1759591880973,-500.0,0.0002,2]
[389151411,1759591880982,-1658.15,0.0002,2]
[389151412,1759591880991,-500.0,0.0002,2]
[389151413,1759591881001,-1385.262419,0.0002,2]
[389151414,1759591881010,-175.483277,0.0002,2]
[389151415,1759591881020,-686.1,0.0002,2]
[389151416,1759591881029,-1385.26241,0.0002,2]
[389151417,1759591881038,-175.483277,0.0002,2]
[389151418,1759591881048,-168.0,0.00020005,2]
[389151419,1759591881057,-1000.0,0.00020021,2]
[389151420,1759591881066,-1099.57751103,0.00020021,2]
[389151421,1759591881075,-1000.0,0.00020021,2]
[389151422,1759591881084,-1000.0,0.00020021,2]
[389151423,1759591881093,-500.0,0.00020041,2]
[389151424,1759591881102,-1680.0,0.00020057,2]
[389151425,1759591881111,-2107.32,0.00020097,3]
[389151426,1759591881120,-1053.66,0.00020097,3]
[389151427,1759591881129,-526.84,0.00020097,3]
[389151428,1759591881139,-500.0,0.00020107,2]
[389151429,1759591881148,-500.0,0.00020107,2]
[389151430,1759591881158,-168.0,0.0002015,2]
[389151431,1759591881167,-168.0,0.00020152,2]
[389151432,1759591881176,-5000.0,0.00020164,2]
[389151433,1759591881186,-151.0,0.00020164,2]
[389151434,1759591881195,-478.534729,0.00020164,2]
[389151435,1759591881204,-155.955059,0.00020164,2]
[389151436,1759591881213,-478.534729,0.00020164,2]
[389151437,1759591881222,-478.534729,0.00020164,2]
[389151438,1759591881232,-478.534724,0.00020164,2]
[389151439,1759591881241,-251.601964,0.00020164,2]
[389151440,1759591881250,-151.0,0.00020164,2]
[389151441,1759591881260,-251.601964,0.00020164,2]
[389151442,1759591881269,-151.0,0.00020164,2]
[389151443,1759591881278,-151.0,0.00020164,2]
[389151444,1759591881287,-151.0,0.00020164,2]
[389151445,1759591881296,-151.0,0.00020164,2]
[389151446,1759591881306,-251.601964,0.00020164,2]
[389151447,1759591881315,-151.0,0.00020164,2]
[389151448,1759591881324,-251.601957,0.00020164,2]
[389151449,1759591881333,-151.0,0.00020164,2]
[389151450,1759591881342,-174.257349,0.00020164,2]
[389151451,1759591881352,-151.0,0.00020164,2]
[389151452,1759591881361,-151.0,0.00020164,2]
[389151453,1759591881370,-151.0,0.00020164,2]
[389151454,1759591881380,-150.0,0.000202,2]
[389151455,1759591881389,-293.52280873,0.000202,7]
[389151456,1759591881398,-160.0,0.00020249,2]
[389151457,1759591881409,-1500.0,0.00020268,2]
[389151458,1759591881419,-167.66744651,0.00020268,2]
[389151459,1759591881428,-1500.0,0.00020268,2]
[389151460,1759591881437,-1500.0,0.00020268,2]
[389151461,1759591881447,-1500.0,0.00020268,2]
[389151462,1759591881456,-294.52963001,0.00020268,2]
[389151463,1759591881465,-1500.0,0.00020268,2]
[389151464,1759591881474,-1504.20138525,0.00020268,2]
[389151465,1759591881484,-1500.0,0.00020268,2]
[389151466,1759591881493,-1500.0,0.00020268,2]
[389151467,1759591881502,-1500.0,0.00020268,2]
[389151468,1759591881511,-1500.0,0.00020268,2]
[389151469,1759591881521,-1500.0,0.00020268,2]
[389151470,1759591881530,-1500.0,0.00020268,2]
[389151471,1759591881539,-1500.0,0.00020268,2]
[389151472,1759591881548,-1500.0,0.00020268,2]
[389151473,1759591881558,-500.36479836,0.00020268,2]
[389151474,1759591881567,-1500.0,0.00020268,2]
[389151475,1759591881576,-1500.0,0.00020268,2]
[389151476,1759591881586,-1518.04696729,0.00020268,2]
[389151477,1759591881596,-1500.0,0.00020268,2]
[389151478,1759591881605,-1500.0,0.00020268,2]
[389151479,1759591881615,-1500.0,0.00020268,2]
[389151480,1759591881625,-1500.0,0.00020268,2]
[389151481,1759591881634,-1500.0,0.00020268,2]
[389151482,1759591881643,-843.11101677,0.00020268,2]
[389151483,1759591881652,-1500.0,0.00020268,2]
[389151484,1759591881663,-1500.0,0.00020268,2]
[389151485,1759591881674,-1500.0,0.00020268,2]
[389151486,1759591881684,-1500.0,0.00020268,2]
[389151487,1759591881694,-1500.0,0.00020268,2]
[389151488,1759591881703,-1500.0,0.00020268,2]
[389151489,1759591881712,-1500.0,0.00020268,2]
[389151490,1759591881722,-501.29388359,0.00020268,2]
[389151491,1759591881731,-1500.0,0.00020268,2]
[389151492,1759591881741,-1500.0,0.00020268,2]
[389151493,1759591881751,-1500.0,0.00020268,2]
[389151494,1759591881760,-1500.0,0.00020268,2]
[389151495,1759591881770,-500.0,0.00020268,2]
[389151496,1759591881779,-1500.0,0.00020268,2]
[389151497,1759591881789,-500.0,0.00020273,2]
[389151498,1759591881799,-398.37352739,0.00020273,2]
[389151499,1759591881814,-500.0,0.00020273,2]
[389151500,1759591881823,-500.0,0.00020273,2]
[389151501,1759591881833,-1039.39,0.00020273,2]
[389151502,1759591881842,-507.83,0.00020273,2]
[389151503,1759591881852,-500.0,0.00020273,2]
[389151504,1759591881862,-500.0,0.00020273,2]
[389151505,1759591881871,-500.0,0.00020273,2]
[389151506,1759591881881,-500.0,0.00020273,2]
[389151507,1759591881891,-500.0,0.00020273,2]
[389151508,1759591881902,-500.0,0.00020273,2]
[389151509,1759591881912,-578.55447669,0.00020273,2]
[389151510,1759591881921,-1109.72,0.00020273,2]
[389151511,1759591881931,-658.4,0.00020273,2]
[389151512,1759591881940,-220.216426,0.00020273,2]
[389151513,1759591881950,-500.0,0.00020273,2]
[389151514,1759591881959,-500.0,0.00020273,2]
[389151515,1759591881968,-224.79346775,0.00020273,2]
[389151516,1759591881978,-500.0,0.00020273,2]
[389151517,1759591881988,-500.0,0.00020273,2]
[389151518,1759591881998,-500.0,0.00020273,2]
[389151519,1759591882008,-500.0,0.00020273,2]
[389151520,1759591882018,-151.479331,0.00020273,2]
[389151521,1759591882028,-151.0,0.00020273,2]
[389151522,1759591882038,-151.0,0.00020273,2]
[389151523,1759591882047,-1722.53,0.00020273,2]
[389151524,1759591882056,-500.0,0.00020273,2]
[389151525,1759591882065,-500.0,0.00020273,2]
[389151526,1759591882075,-500.0,0.00020273,2]
[389151527,1759591882084,-500.0,0.00020273,2]
[389151528,1759591882094,-500.0,0.00020273,2]
[389151529,1759591882103,-241.85759531,0.00020273,2]
[389151530,1759591882112,-500.0,0.00020273,2]
[389151531,1759591882122,-500.0,0.00020273,2]
[389151532,1759591882131,-561.02,0.00020273,2]
[389151533,1759591882140,-500.0,0.00020273,2]
[389151534,1759591882150,-606.7,0.00020273,2]
[389151535,1759591882160,-500.0,0.00020273,2]
[389151536,1759591882170,-500.0,0.00020273,2]
[389151537,1759591882179,-576.96,0.00020273,2]
[389151538,1759591882188,-500.0,0.00020273,2]
[389151539,1759591882198,-500.0,0.00020273,2]
[389151540,1759591882207,-500.0,0.00020273,2]
[389151541,1759591882217,-815.78,0.00020273,2]
[389151542,1759591882227,-500.0,0.00020273,2]
[389151543,1759591882236,-500.0,0.00020273,2]
[389151544,1759591882247,-277.25363014,0.00020273,2]
[389151545,1759591882256,-551.35,0.00020273,2]
[389151546,1759591882266,-503.54,0.00020273,2]
[389151547,1759591882278,-500.0,0.00020273,2]
[389151548,1759591882287,-552.14,0.00020273,2]
[389151549,1759591882296,-151.0,0.00020273,2]
[389151550,1759591882305,-500.0,0.00020273,2]
[389151551,1759591882314,-500.0,0.00020273,2]
[389151552,1759591882324,-500.0,0.00020273,2]
[389151553,1759591882333,-500.0,0.00020273,2]
[389151554,1759591882343,-500.0,0.00020273,2]
[389151555,1759591882354,-500.0,0.00020273,2]
[389151556,1759591882363,-500.0,0.00020273,2]
[389151557,1759591882372,-500.0,0.00020273,2]
[389151558,1759591882381,-500.0,0.00020273,2]
[389151559,1759591882391,-500.0,0.00020273,2]
[389151560,1759591882400,-151.0,0.00020273,2]
[389151561,1759591882410,-500.0,0.00020273,2]
[389151562,1759591882419,-481.95125588,0.00020273,2]
[389151563,1759591882428,-983.77,0.00020273,2]
[389151564,1759591882438,-500.0,0.00020273,2]
[389151565,1759591882448,-500.0,0.00020273,2]
[389151566,1759591882457,-717.9,0.00020273,2]
[389151567,1759591882467,-500.0,0.00020273,2]
[389151568,1759591882477,-425.863081,0.00020273,2]
[389151569,1759591882486,-500.0,0.00020273,2]
[389151570,1759591882496,-500.0,0.00020273,2]
[389151571,1759591882506,-535.53,0.00020273,2]
[389151572,1759591882516,-371.81900203,0.00020273,2]
[389151573,1759591882526,-441.82596915,0.00020273,2]
[389151574,1759591882536,-500.0,0.00020273,2]
[389151575,1759591882545,-539.76,0.00020273,2]
[389151576,1759591882555,-281.73753384,0.00020273,2]
[389151577,1759591882564,-1081.73,0.00020273,2]
[389151578,1759591882574,-785.95,0.00020273,2]
[389151579,1759591882583,-500.0,0.00020273,2]
[389151580,1759591882592,-500.0,0.00020273,2]
[389151581,1759591882601,-500.0,0.00020273,2]
[389151582,1759591882610,-500.0,0.00020273,2]
[389151583,1759591882621,-500.0,0.00020273,2]
[389151584,1759591882631,-996.16,0.00020273,2]
[389151585,1759591882639,-500.0,0.00020273,2]
[389151586,1759591882649,-500.0,0.00020273,2]
[389151587,1759591882660,-1061.25,0.00020273,2]
[389151588,1759591882670,-500.0,0.00020273,2]
[389151589,1759591882679,-462.14122412,0.00020273,2]
[389151590,1759591882688,-500.0,0.00020273,2]
[389151591,1759591882698,-1035.1,0.00020273,2]
[389151592,1759591882707,-500.0,0.00020273,2]
[389151593,1759591882717,-571.62,0.00020273,2]
[389151594,1759591882726,-500.0,0.00020273,2]
[389151595,1759591882736,-500.0,0.00020273,2]
[389151596,1759591882745,-500.0,0.00020273,2]
[389151597,1759591882754,-940.09,0.00020273,2]
[389151598,1759591882764,-500.0,0.00020273,2]
[389151599,1759591882774,-500.0,0.00020273,2]
[389151600,1759591882783,-500.0,0.00020273,2]
[389151601,1759591882792,-500.0,0.00020273,2]
[389151602,1759591882801,-500.0,0.00020273,2]
[389151603,1759591882811,-685.26,0.00020273,2]
[389151604,1759591882824,-207.62049741,0.00020273,2]
[389151605,1759591882833,-500.0,0.00020273,2]
[389151606,1759591882843,-151.0,0.00020273,2]
[389151607,1759591882852,-151.0,0.00020273,2]
[389151608,1759591882862,-151.0,0.00020273,2]
[389151609,1759591882871,-151.0,0.00020273,2]
[389151610,1759591882881,-1089.32,0.00020273,2]
[389151611,1759591882890,-521.57,0.00020273,2]
[389151612,1759591882899,-500.0,0.00020273,2]
[389151613,1759591882910,-500.0,0.00020273,2]
[389151614,1759591882919,-500.0,0.00020273,2]
[389151615,1759591882929,-151.0,0.00020273,2]
[389151616,1759591882938,-500.0,0.00020273,2]
[389151617,1759591882948,-483.00331086,0.00020273,2]
[389151618,1759591882958,-151.0,0.00020273,2]
[389151619,1759591882967,-500.0,0.00020273,2]
[389151620,1759591882976,-500.0,0.00020273,2]
[389151621,1759591882986,-210.24945655,0.00020273,2]
[389151622,1759591882996,-500.0,0.00020273,2]
[389151623,1759591883005,-500.0,0.00020273,2]
[389151624,1759591883014,-500.0,0.00020273,2]
[389151625,1759591883024,-500.0,0.00020273,2]
[389151626,1759591883034,-500.0,0.00020273,2]
[389151627,1759591883044,-638.24,0.00020273,2]
[389151628,1759591883053,-556.89,0.00020273,2]
[389151629,1759591883063,-500.0,0.00020273,2]
[389151630,1759591883072,-500.0,0.00020273,2]
[389151631,1759591883081,-500.0,0.00020273,2]
[389151632,1759591883091,-500.0,0.00020273,2]
[389151633,1759591883101,-935.25,0.00020273,2]
[389151634,1759591883110,-500.0,0.00020273,2]
[389151635,1759591883120,-500.0,0.00020273,2]
[389151636,1759591883130,-500.0,0.00020273,2]
[389151637,1759591883140,-500.0,0.00020273,2]
[389151638,1759591883150,-500.0,0.00020273,2]
[389151639,1759591883161,-3190.15,0.00020273,2]
[389151640,1759591883170,-500.0,0.00020273,2]
[389151641,1759591883180,-500.0,0.00020273,2]
[389151642,1759591883190,-500.0,0.00020273,2]
[389151643,1759591883199,-1767.35,0.00020273,2]
[389151644,1759591883209,-151.0,0.00020273,2]
[389151645,1759591883219,-151.0,0.00020273,2]
[389151646,1759591883229,-500.0,0.00020273,2]
[389151647,1759591883249,-500.0,0.00020273,2]
[389151648,1759591883259,-1021.71,0.00020273,2]
[389151649,1759591883270,-500.0,0.00020273,2]
[389151650,1759591883279,-722.22,0.00020273,2]
[389151651,1759591883289,-512.79,0.00020273,2]
[389151652,1759591883299,-500.0,0.00020273,2]
[389151653,1759591883309,-151.0,0.00020273,2]
[389151654,1759591883319,-1130.19,0.00020273,2]
[389151655,1759591883328,-151.0,0.00020273,2]
[389151656,1759591883338,-500.0,0.00020273,2]
[389151657,1759591883347,-500.0,0.00020273,2]
[389151658,1759591883357,-500.0,0.00020273,2]
[389151659,1759591883367,-594.94,0.00020273,2]
[389151660,1759591883376,-427.1135,0.00020273,2]
[389151661,1759591883386,-500.0,0.00020273,2]
[389151662,1759591883397,-1634.65,0.00020273,2]
[389151663,1759591883407,-427.1135,0.00020273,2]
[389151664,1759591883416,-755.21,0.00020273,2]
[389151665,1759591883426,-638.84,0.00020273,2]
[389151666,1759591883436,-427.1135,0.00020273,2]
[389151667,1759591883445,-427.1135,0.00020273,2]
[389151668,1759591883455,-1184.66,0.00020273,2]
[389151669,1759591883465,-1037.44,0.00020273,2]
[389151670,1759591883475,-500.0,0.00020273,2]
[389151671,1759591883484,-500.0,0.00020273,2]
[389151672,1759591883494,-153.636867,0.00020273,2]
[389151673,1759591883504,-500.0,0.00020273,2]
[389151674,1759591883514,-1102.84,0.00020273,2]
[389151675,1759591883524,-151.0,0.00020273,2]
[389151676,1759591883534,-151.0,0.00020273,2]
[389151677,1759591883544,-500.0,0.00020273,2]
[389151678,1759591883554,-500.0,0.00020273,2]
[389151679,1759591883564,-500.0,0.00020273,2]
[389151680,1759591883573,-500.0,0.00020273,2]
[389151681,1759591883583,-500.0,0.00020273,2]
[389151682,1759591883592,-888.19,0.00020273,2]
[389151683,1759591883602,-500.0,0.00020273,2]
[389151684,1759591883612,-707.88,0.00020273,2]
[389151685,1759591883622,-500.0,0.00020273,2]
[389151686,1759591883632,-3472.11,0.00020273,2]
[389151687,1759591883642,-500.0,0.00020273,2]
[389151688,1759591883652,-607.97,0.00020273,2]
[389151689,1759591883663,-500.0,0.00020273,2]
[389151690,1759591883673,-613.12574947,0.00020273,2]
[389151691,1759591883881,-2253.27,0.00020273,2]
[389151692,1759591883892,-500.0,0.00020273,2]
[389151693,1759591883903,-151.0,0.00020273,2]
[389151694,1759591883917,-500.0,0.00020273,2]
[389151695,1759591883927,-271.8,0.00020273,2]
[389151696,1759591883937,-500.0,0.00020273,2]
[389151697,1759591883947,-500.0,0.00020273,2]
[389151698,1759591883958,-1207.5,0.00020273,2]
[389151699,1759591883968,-334.40634867,0.00020273,2]
[389151700,1759591883978,-896.72,0.00020273,2]
[389151701,1759591883989,-500.0,0.00020273,2]
[389151702,1759591883998,-1747.71,0.00020273,2]
[389151703,1759591884008,-500.0,0.00020273,2]
[389151704,1759591884018,-500.0,0.00020273,2]
[389151705,1759591884027,-595.63,0.00020273,2]
[389151706,1759591884037,-500.0,0.00020273,2]
[389151707,1759591884046,-827.71,0.00020273,2]
[389151708,1759591884056,-151.0,0.00020273,2]
[389151709,1759591884065,-500.0,0.00020273,2]
[389151710,1759591884075,-504.25,0.00020273,2]
[389151711,1759591884084,-151.0,0.00020273,2]
[389151712,1759591884093,-151.0,0.00020273,2]
[389151713,1759591884103,-500.0,0.00020273,2]
[389151714,1759591884113,-890.07,0.00020273,2]
[389151715,1759591884123,-500.0,0.00020273,2]
[389151716,1759591884132,-914.63,0.00020273,2]
[389151717,1759591884142,-1015.82,0.00020273,2]
[389151718,1759591884151,-500.0,0.00020273,2]
[389151719,1759591884164,-500.0,0.00020273,2]
[389151720,1759591884174,-500.0,0.00020273,2]
[389151721,1759591884183,-500.0,0.00020273,2]
[389151722,1759591884193,-500.0,0.00020273,2]
[389151723,1759591884203,-256.27063163,0.00020273,2]
[389151724,1759591884212,-500.0,0.00020273,2]
[389151725,1759591884222,-500.0,0.00020273,2]
[389151726,1759591884231,-532.07,0.00020273,2]
[389151727,1759591884240,-870.38,0.00020273,2]
[389151728,1759591884249,-500.0,0.00020273,2]
[389151729,1759591884258,-500.0,0.00020273,2]
[389151730,1759591884268,-3160.55,0.00020273,2]
[389151731,1759591884277,-1519.75,0.00020273,2]
[389151732,1759591884287,-402.4956591,0.00020273,2]